bitfinex-derivatives/quotes_SOLF0:USTF0_20250914
["timestamp","ask_amount","ask_price","bid_price","bid_amount"]
[1757876884909,1.08520967,243.81,243.72,104.54]
[1757876885208,1.08520967,243.81,243.72,111.11]
[1757876885508,1.08520967,243.81,243.72,6.57]
[1757876885712,1.08520967,243.81,243.72,111.11]
[1757876886407,1.08520967,243.81,243.72,6.57]
[1757876886808,1.08520967,243.81,243.72,111.11]
[1757876888214,1.08520967,243.81,243.72,6.57]
[1757876888414,1.08520967,243.81,243.73,104.52]
[1757876890318,1.08520967,243.84,243.74,6.57]
[1757876891418,6.84,243.87,243.74,6.57]
[1757876891618,1.08520967,243.83,243.74,6.57]
[1757876892216,1.08520967,243.86,243.74,6.57]
[1757876892415,6.84,243.87,243.75,104.52]
[1757876892621,1.08520967,243.86,243.75,104.52]
[1757876893319,1.08520967,243.86,243.76,6.52]
[1757876893621,7.92520967,243.87,243.76,6.52]
[1757876894021,6.84,243.87,243.76,6.52]
[1757876894323,1.08520967,243.9,243.76,6.52]
[1757876894621,1.08520967,243.9,243.77,6.52]
[1757876895319,1.08520967,243.9,243.79,6.52]
[1757876896420,1.08520967,243.93,243.81,6.52]
[1757876897022,1.08520967,243.9,243.81,6.52]
[1757876897817,6.72,243.92,243.81,6.52]
[1757876898122,1.08520967,243.91,243.81,6.52]
[1757876898817,6.72,243.92,243.86,1.08520967]
[1757876899013,6.72,243.97,243.86,7.60520967]
[1757876899618,6.72,243.97,243.88,1.08520967]
[1757876901519,6.72,243.97,243.87,1.08520967]
[1757876901714,6.72,243.95,243.85,1.08520967]
[1757876902120,6.72,243.95,243.87,1.08520967]
[1757876902327,6.72,244.07,243.93,1.08520967]
[1757876902519,6.72,244.01,243.93,1.08520967]
[1757876902720,6.72,243.99,243.93,1.08520967]
[1757876903926,6.72,243.99,243.92,1.08520967]
[1757876904323,6.72,243.99,243.95,1.08520967]
[1757876904516,6.72,244.05,243.95,1.08520967]
[1757876904721,6.72,244.05,243.98,1.08520967]
[1757876905521,6.72,244.11,244.01,1.08520967]
[1757876906420,7.80520967,244.11,244.01,1.08520967]
[1757876906621,2.84228161,244.1,243.97,6.52]
[1757876906822,6.72,244.09,244.0,1.08520967]
[1757876909321,6.72,244.09,244.02,1.08520967]
[1757876909620,6.72,244.09,244.04,1.08520967]
[1757876909926,6.72,244.09,244.04,7.60520967]
[1757876910323,6.72,244.14,244.07,1.08520967]
[1757876910525,6.72,244.21,244.1,1.08520967]
[1757876911324,6.72,244.21,244.08,6.52]
[1757876911325,6.72,244.23,244.11,6.52]
[1757876911531,1.08520967,244.19,244.08,1.08520967]
[1757876912226,6.72,244.2,244.06,6.52]
[1757876912431,6.72,244.2,244.09,1.08520967]
[1757876913730,6.72,244.2,244.12,1.08520967]
[1757876914128,6.72,244.2,244.1,6.52]
[1757876914426,6.72,244.2,244.14,1.08520967]
[1757876915331,6.72,244.26,244.14,1.08520967]
[1757876916028,6.72,244.26,244.17,1.08520967]
[1757876916326,6.72,244.26,244.18,1.08520967]
[1757876917527,6.72,244.26,244.21,7.60520967]
[1757876917724,6.72,244.31,244.21,1.08520967]
[1757876918134,6.72,244.31,244.2,1.08520967]
[1757876919236,7.80520967,244.31,244.2,1.08520967]
[1757876919832,6.72,244.31,244.2,1.08520967]
[1757876920031,1.08520967,244.29,244.18,6.52]
[1757876920233,6.72,244.28,244.18,6.52]
[1757876921534,6.72,244.28,244.2,1.08520967]
[1757876921736,6.72,244.28,244.19,1.08520967]
[1757876923233,6.72,244.28,244.22,1.08520967]
[1757876925536,6.72,244.28,244.2,1.08520967]
[1757876927937,6.72,244.28,244.23,1.08520967]
[1757876928440,1.08520967,244.35,244.23,1.08520967]
[1757876928441,6.63,244.34,244.23,1.08520967]
[1757876930431,6.63,244.34,244.26,1.08520967]
[1757876931245,6.63,244.34,244.24,1.08520967]
[1757876931446,6.63,244.32,244.24,1.08520967]
[1757876931848,6.63,244.32,244.18,1.6888497]
[1757876932649,6.63,244.3,244.11,17.9688497]
[1757876932948,6.63,244.3,244.13,6.8]
[1757876933649,0.7125453,244.39,244.13,8.4888497]
[1757876933844,1.6888497,244.3,244.13,8.4888497]
[1757876934049,7.08,244.29,244.13,8.4888497]
[1757876935050,7.08,244.29,244.13,6.8]
[1757876935645,7.08,244.29,244.13,8.4888497]
[1757876937349,7.08,244.29,244.13,6.8]
[1757876939851,7.08,244.29,244.13,8.4888497]
[1757876940355,7.08,244.29,244.13,6.8]
[1757876941050,1.6888497,244.26,244.1,1.6888497]
[1757876941245,7.08,244.25,244.1,1.6888497]
[1757876941447,7.08,244.25,244.09,6.6]
[1757876941651,7.08,244.21,244.09,6.6]
[1757876944057,1.6888497,244.3,244.09,6.6]
[1757876944058,7.08,244.29,244.1,6.6]
[1757876944260,7.08,244.27,244.1,6.6]
[1757876944956,7.08,244.25,244.1,6.6]
[1757876946951,7.08,244.25,244.14,6.6]
[1757876947756,7.08,244.25,244.17,1.6888497]
[1757876948557,7.08,244.25,244.18,6.6]
[1757876948956,7.08,244.34,244.18,6.6]
[1757876949266,7.08,244.32,244.18,6.6]
[1757876950156,2.83932748,244.31,244.18,6.6]
[1757876951159,7.08,244.3,244.18,6.6]
[1757876951361,2.84099966,244.29,244.15,1.6888497]
[1757876951565,6.63,244.28,244.13,6.41]
[1757876952563,2.84313732,244.27,244.13,6.41]
[1757876953061,2.84313732,244.27,244.16,1.6888497]
[1757876953661,2.84313732,244.27,244.16,8.0988497]
[1757876953863,6.63,244.26,244.16,8.0988497]
[1757876954063,6.63,244.26,244.13,1.6888497]
[1757876954269,2.84720942,244.25,244.13,1.6888497]
[1757876954467,6.63,244.24,244.09,6.41]
[1757876954666,6.63,244.33,244.18,6.41]
[1757876954865,2.84767288,244.32,244.2,1.6888497]
[1757876955061,6.63,244.3,244.2,1.6888497]
[1757876955262,2.84767288,244.29,244.2,1.6888497]
[1757876957773,6.63,244.3,244.2,1.6888497]
[1757876958176,6.63,244.3,244.21,6.41]
[1757876958569,6.63,244.3,244.22,1.6888497]
[1757876959865,6.63,244.39,244.26,1.6888497]
[1757876960069,2.85345908,244.38,244.26,1.6888497]
[1757876960267,2.85345908,244.37,244.26,1.6888497]
[1757876960467,9.48345908,244.36,244.26,1.6888497]
[1757876960668,2.85345908,244.35,244.26,1.6888497]
[1757876961266,6.63,244.36,244.26,1.6888497]
[1757876961870,6.63,244.36,244.29,1.6888497]
[1757876962073,6.63,244.36,244.28,1.6888497]
[1757876962266,6.63,244.36,244.25,6.41]
[1757876962466,6.63,244.34,244.22,1.6888497]
[1757876964574,6.63,244.34,244.24,1.6888497]
[1757876964777,6.63,244.34,244.21,6.41]
[1757876964977,6.63,244.34,244.21,8.0988497]
[1757876965173,6.63,244.34,244.14,6.83678976]
[1757876965473,6.63,244.34,244.17,1.6888497]
[1757876965474,6.63,244.32,244.17,1.6888497]
[1757876966674,6.63,244.32,244.18,6.41]
[1757876966978,6.63,244.32,244.21,8.0988497]
[1757876967181,6.63,244.32,244.21,6.41]
[1757876967578,6.63,244.32,244.19,1.6888497]
[1757876967778,6.63,244.32,244.16,6.41]
[1757876968879,6.63,244.32,244.19,1.6888497]
[1757876969075,6.63,244.32,244.2,6.41]
[1757876971575,6.63,244.32,244.18,1.6888497]
[1757876971975,6.63,244.28,244.09,6.41]
[1757876972181,1.6888497,244.29,244.09,6.41]
[1757876972182,6.63,244.24,244.09,6.41]
[1757876972380,6.63,244.22,244.09,6.41]
[1757876972581,6.63,244.2,244.09,6.41]
[1757876975684,1.6888497,244.18,244.01,6.41]
[1757876975888,6.63,244.16,244.01,6.41]
[1757876976091,6.63,244.14,244.01,6.41]
[1757876976391,8.48,244.16,243.92,6.41]
[1757876976688,6.63,244.14,243.92,6.41]
[1757876979293,6.63,244.15,243.93,6.41]
[1757876979986,6.63,244.15,243.95,6.41]
[1757876983089,8.6,244.14,243.95,6.41]
[1757876983286,6.4,244.13,243.95,6.41]
[1757876983993,6.4,244.13,243.97,6.75]
[1757876984897,6.4,244.13,243.99,6.75]
[1757876991795,6.4,244.09,243.99,6.75]
[1757876995897,1.08304463,244.06,243.99,6.75]
[1757876996889,6.54,244.2,244.02,1.08304463]
[1757876997193,6.54,244.14,244.03,6.9]
[1757876998797,7.62304463,244.14,244.03,6.9]
[1757876999798,6.54,244.1,244.03,6.9]
[1757877003094,17.32,244.2,244.03,6.9]
[1757877003301,6.54,244.19,244.03,6.9]
[1757877006597,2.81947569,244.21,243.97,6.9]
[1757877006598,6.54,244.15,243.97,6.9]
[1757877006792,6.54,244.1,243.97,6.9]
[1757877014806,6.82,244.08,243.97,6.9]
[1757877015202,6.82,244.06,243.97,6.9]
[1757877021702,1.08319216,244.05,243.97,6.9]
[1757877022310,45.8,244.13,243.97,6.9]
[1757877022311,1.08319216,244.08,243.97,6.9]
[1757877023311,7.90319216,244.09,244.0,7.07]
[1757877023999,1.08319216,244.12,244.0,7.07]
[1757877024203,6.82,244.11,244.0,7.07]
[1757877025214,7.90319216,244.11,244.0,7.07]
[1757877025616,6.82,244.11,244.0,7.07]
[1757877028610,7.90319216,244.16,244.03,7.07]
[1757877028914,6.82,244.16,244.06,7.07]
[1757877030919,1.08319216,244.21,244.09,6.54]
[1757877031117,6.75,244.2,244.09,6.54]
[1757877031416,2.84527805,244.19,244.09,6.54]
[1757877031618,2.84527805,244.19,244.09,7.62319216]
[1757877032318,6.75,244.2,244.09,7.62319216]
[1757877032818,6.75,244.2,244.13,6.54]
[1757877033218,1.08319216,244.24,244.13,6.54]
[1757877033518,6.75,244.25,244.15,1.08319216]
[1757877033716,6.75,244.25,244.16,6.54]
[1757877034114,6.75,244.29,244.18,1.08319216]
[1757877034311,6.75,244.29,244.19,6.54]
[1757877035714,6.75,244.38,244.21,1.08319216]
[1757877035920,1.08319216,244.34,244.22,6.54]
[1757877038018,1.08319216,244.35,244.22,6.54]
[1757877038615,1.08319216,244.32,244.22,6.54]
[1757877040422,1.08319216,244.36,244.24,1.08319216]
[1757877040627,1.08319216,244.36,244.25,6.54]
[1757877041618,1.08319216,244.36,244.25,7.62319216]
[1757877043424,1.08319216,244.36,244.25,6.54]
[1757877044520,1.08319216,244.37,244.25,6.54]
[1757877044920,1.08319216,244.34,244.25,6.54]
[1757877045124,6.75,244.38,244.25,6.54]
[1757877045325,1.08319216,244.36,244.25,6.54]
[1757877050028,115.39875689,244.46,244.3,6.41]
[1757877050029,1.08319216,244.4,244.3,6.41]
[1757877050623,6.86,244.43,244.3,6.41]
[1757877050829,1.08319216,244.4,244.3,6.41]
[1757877051026,6.86,244.43,244.3,6.41]
[1757877051223,1.08319216,244.4,244.3,6.41]
[1757877053731,6.86,244.43,244.3,6.41]
[1757877056530,6.73,244.43,244.2,6.78]
[1757877056725,1.68728462,244.44,244.2,6.78]
[1757877056726,1.68728462,244.35,244.21,6.78]
[1757877057435,1.68728462,244.35,244.21,3.6835]
[1757877057636,1.68728462,244.35,244.22,6.78]
[1757877060438,1.68728462,244.35,244.21,3.6835]
[1757877060439,1.68728462,244.35,244.24,6.78]
[1757877060940,1.68728462,244.39,244.24,6.78]
[1757877061133,6.73,244.48,244.24,6.78]
[1757877061335,1.68728462,244.39,244.26,6.78]
[1757877061536,6.73,244.38,244.27,103.86]
[1757877062228,6.73,244.38,244.26,6.78]
[1757877062432,6.73,244.38,244.27,103.86]
[1757877063642,6.73,244.38,244.26,6.78]
[1757877064232,1.68728462,244.35,244.26,6.78]
[1757877064430,6.73,244.34,244.26,6.78]
[1757877065234,6.73,244.34,244.2,46.48]
[1757877065440,1.68728462,244.35,244.2,46.48]
[1757877065628,6.73,244.34,244.2,46.48]
[1757877066242,6.73,244.48,244.23,1.68728462]
[1757877066439,6.73,244.42,244.24,6.78]
[1757877066839,6.73,244.4,244.25,39.04]
[1757877067037,1.68728462,244.41,244.25,39.04]
[1757877067346,6.73,244.4,244.26,6.78]
[1757877068248,6.73,244.4,244.26,83.3]
[1757877068447,6.73,244.42,244.26,83.3]
[1757877068744,6.73,244.42,244.26,6.78]
[1757877072052,2.82628983,244.41,244.26,6.78]
[1757877072855,6.73,244.42,244.26,6.78]
[1757877073255,6.73,244.42,244.26,3.6828]
[1757877073451,6.73,244.42,244.28,6.61]
[1757877073958,6.73,244.42,244.29,6.61]
[1757877074160,6.73,244.42,244.3,6.61]
[1757877074353,6.73,244.42,244.3,110.41]
[1757877074756,6.73,244.42,244.3,6.61]
[1757877074953,6.99,244.4,244.3,6.61]
[1757877075854,2.83349496,244.39,244.3,6.61]
[1757877076061,6.99,244.38,244.3,6.61]
[1757877078862,6.99,244.42,244.3,6.61]
[1757877079064,2.84248912,244.41,244.3,6.61]
[1757877079262,2.84248912,244.4,244.3,6.61]
[1757877079462,6.99,244.42,244.3,6.61]
[1757877079663,2.8444521,244.41,244.3,6.61]
[1757877080069,6.99,244.42,244.3,6.61]
[1757877080453,6.99,244.46,244.3,6.61]
[1757877080659,2.84571003,244.45,244.34,6.61]
[1757877080859,6.99,244.5,244.34,6.61]
[1757877081059,2.84598993,244.49,244.34,6.61]
[1757877081261,2.84598993,244.48,244.34,6.61]
[1757877081465,2.84598993,244.47,244.34,6.61]
[1757877081665,9.83598993,244.46,244.34,6.61]
[1757877081963,6.99,244.46,244.34,6.61]
[1757877082959,2.84422514,244.45,244.34,6.61]
[1757877083163,2.84422514,244.44,244.34,6.61]
[1757877083365,6.99,244.46,244.34,6.61]
[1757877083661,6.99,244.44,244.34,6.61]
[1757877085265,6.99,244.52,244.34,6.61]
[1757877085567,6.99,244.5,244.34,6.61]
[1757877085867,2.84456808,244.49,244.34,6.61]
[1757877087470,2.84456808,244.49,244.36,6.61]
[1757877087667,6.99,244.5,244.36,6.61]
[1757877090270,6.99,244.54,244.38,6.61]
[1757877090472,6.99,244.54,244.42,6.61]
[1757877097870,6.99,244.52,244.42,6.61]
[1757877100875,6.99,244.58,244.42,6.61]
[1757877101076,6.99,244.58,244.46,6.61]
[1757877111684,8.67728462,244.58,244.46,6.61]
[1757877115090,6.99,244.58,244.46,6.61]
[1757877115490,6.99,244.58,244.5,6.52]
[1757877115879,6.99,244.58,244.52,1.07808443]
[1757877116591,7.64808443,244.65,244.54,1.07808443]
[1757877117193,6.57,244.65,244.54,1.07808443]
[1757877117392,12.94216326,244.7,244.41,6.52]
[1757877117393,7.64808443,244.57,244.41,6.52]
[1757877117687,7.64808443,244.57,244.44,6.52]
[1757877119293,7.64808443,244.57,244.44,58.48]
[1757877120192,7.64808443,244.57,244.44,6.52]
[1757877120391,6.57,244.53,244.44,6.52]
[1757877122093,1.07808443,244.48,244.36,6.52]
[1757877123998,1.07808443,244.48,244.37,1.07808443]
[1757877124197,1.07808443,244.48,244.38,6.52]
[1757877124588,1.07808443,244.48,244.38,110.06]
[1757877125497,6.57,244.5,244.38,103.54]
[1757877125700,6.57,244.5,244.39,6.52]
[1757877126200,7.64808443,244.54,244.41,6.52]
[1757877126696,7.64808443,244.54,244.43,6.52]
[1757877129398,6.57,244.54,244.43,6.52]
[1757877131292,6.57,244.54,244.44,83.32]
[1757877131498,6.57,244.54,244.45,6.66]
[1757877132203,6.74,244.67,244.51,1.07808443]
[1757877132504,1.07808443,244.65,244.52,6.66]
[1757877132701,1.07808443,244.62,244.52,6.66]
[1757877132900,6.74,244.61,244.52,6.66]
[1757877133400,6.74,244.61,244.52,34.46]
[1757877133702,1.07808443,244.64,244.52,34.46]
[1757877133703,1.07808443,244.64,244.52,28.87808443]
[1757877133898,93.05500068,244.68,244.41,8.859358]
[1757877133899,1.07808443,244.55,244.46,6.66]
[1757877134606,6.74,244.57,244.46,6.66]
[1757877136607,1.07808443,244.55,244.46,6.66]
[1757877136907,6.74,244.54,244.46,6.66]
[1757877137109,6.74,244.54,244.42,6.66]
[1757877137410,7.81808443,244.54,244.42,49.82]
[1757877137806,4.49925175,244.65,244.43,7.73808443]
[1757877138006,7.81808443,244.58,244.47,6.66]
[1757877139304,6.74,244.58,244.47,6.66]
[1757877140708,6.74,244.58,244.48,1.07808443]
[1757877141109,7.81808443,244.58,244.47,6.66]
[1757877141505,6.74,244.58,244.47,6.66]
[1757877141706,6.74,244.58,244.48,1.07808443]
[1757877146528,6.74,244.58,244.47,24.9]
[1757877146721,6.74,244.58,244.48,1.07808443]
[1757877147120,6.74,244.58,244.51,1.07808443]
[1757877147422,1.07808443,244.64,244.52,6.66]
[1757877147627,6.74,244.63,244.52,6.66]
[1757877147822,6.74,244.63,244.55,6.66]
[1757877150628,6.74,244.63,244.53,1.07808443]
[1757877150925,6.74,244.63,244.53,47.77808443]
[1757877151130,6.74,244.63,244.54,6.66]
[1757877151526,6.74,244.63,244.56,1.07808443]
[1757877154437,6.74,244.63,244.56,7.73808443]
[1757877155625,6.74,244.68,244.56,6.66]
[1757877155831,6.74,244.68,244.62,1.07808443]
[1757877158338,6.74,244.68,244.61,1.07808443]
[1757877159132,6.74,244.75,244.67,1.07808443]
[1757877159338,6.74,244.81,244.68,110.1]
[1757877160337,6.74,244.81,244.71,6.66]
[1757877161335,6.74,244.81,244.71,110.08]
[1757877162338,6.74,244.81,244.7,103.42]
[1757877162536,1.07808443,244.82,244.7,103.42]
[1757877162743,6.66,244.81,244.7,103.42]
[1757877163040,6.66,244.81,244.69,1.07808443]
[1757877163239,6.66,244.81,244.69,42.87808443]
[1757877163440,1.07808443,244.82,244.69,42.87808443]
[1757877163634,6.66,244.81,244.69,42.87808443]
[1757877164134,6.66,244.81,244.7,6.93]
[1757877166447,6.66,244.81,244.73,6.93]
[1757877167238,1.07808443,244.87,244.73,6.93]
[1757877167443,6.66,244.86,244.78,1.07808443]
[1757877168541,6.66,245.0,244.79,23.05]
[1757877168742,6.66,244.92,244.81,1.07808443]
[1757877169644,6.66,244.92,244.81,8.00808443]
[1757877169844,6.66,244.92,244.87,1.07808443]
[1757877170038,6.66,244.92,244.88,6.93]
[1757877170743,1.07808443,244.99,244.88,6.93]
[1757877170943,6.66,244.98,244.88,6.93]
[1757877172444,6.66,244.98,244.87,1.07808443]
[1757877172641,1.07808443,244.99,244.86,76.83808443]
[1757877173047,6.66,244.98,244.86,1.07808443]
[1757877173245,7.73808443,244.98,244.86,1.07808443]
[1757877173452,6.66,244.98,244.86,1.07808443]
[1757877173754,6.66,244.98,244.86,8.00808443]
[1757877174755,6.66,244.98,244.86,6.93]
[1757877175053,6.66,244.98,244.87,1.07808443]
[1757877175955,6.66,244.98,244.86,110.25]
[1757877176653,6.66,244.98,244.87,6.38]
[1757877176849,152.46323741,245.06,244.87,6.38]
[1757877177051,6.9,245.05,244.89,6.38]
[1757877177950,6.9,244.97,244.79,6.38]
[1757877178552,1.67935575,244.98,244.79,48.86]
[1757877178850,6.9,244.97,244.79,82.2]
[1757877179156,6.9,244.97,244.8,6.38]
[1757877180956,6.9,244.97,244.83,1.67935575]
[1757877181254,6.9,244.97,244.84,6.38]
[1757877181952,6.9,244.97,244.85,6.38]
[1757877182251,6.9,244.97,244.86,6.38]
[1757877182951,6.9,245.05,244.86,6.38]
[1757877183164,6.9,245.05,244.86,46.58]
[1757877183350,1.67935575,245.02,244.86,46.58]
[1757877183658,6.9,245.01,244.86,6.38]
[1757877185562,6.9,244.97,244.78,8.05935575]
[1757877185752,6.9,244.97,244.81,6.38]
[1757877185957,6.9,244.97,244.81,44.04]
[1757877186156,1.67935575,244.98,244.81,44.04]
[1757877186460,6.9,244.93,244.81,6.38]
[1757877187456,6.9,244.93,244.82,103.28]
[1757877187660,6.9,244.93,244.81,6.38]
[1757877188560,6.9,244.95,244.78,6.38]
[1757877188765,6.9,244.95,244.8,6.38]
[1757877190260,6.9,244.95,244.84,6.38]
[1757877190464,6.9,245.03,244.86,6.38]
[1757877190663,6.9,245.03,244.88,6.38]
[1757877191664,6.9,245.03,244.91,1.67935575]
[1757877191866,6.9,245.03,244.9,1.67935575]
[1757877192071,6.9,245.03,244.91,6.7]
[1757877192662,6.9,245.03,244.91,8.37935575]
[1757877192970,6.9,245.03,244.91,6.7]
[1757877193167,6.9,245.03,244.91,61.26]
[1757877193369,6.42,245.2,244.94,6.7]
[1757877193574,19.04887763,245.24,244.94,6.7]
[1757877193575,6.42,245.12,244.94,6.7]
[1757877193775,1.67935575,245.09,244.94,6.7]
[1757877193976,6.42,245.08,244.94,6.7]
[1757877196065,6.42,245.08,244.91,29.9]
[1757877196264,6.42,245.08,244.88,1.67935575]
[1757877196265,6.42,245.08,244.9,36.6]
[1757877196471,1.67935575,245.09,244.9,36.6]
[1757877196776,6.42,245.08,244.9,36.6]
[1757877197075,1.67935575,245.09,244.9,36.6]
[1757877197372,6.42,245.08,244.91,6.7]
[1757877200578,6.42,245.08,244.93,6.7]
[1757877206788,1.67935575,245.11,244.93,6.7]
[1757877207083,6.42,245.1,244.93,21.28]
[1757877207289,1.67935575,245.11,244.93,21.28]
[1757877207984,6.42,245.1,244.94,6.7]
[1757877209584,6.42,245.1,244.95,6.7]
[1757877211586,6.42,245.1,244.95,8.37935575]
[1757877211791,6.42,245.1,244.96,6.7]
[1757877213281,6.42,245.1,244.97,6.7]
[1757877215886,6.42,245.1,244.99,6.7]
[1757877219587,6.42,245.17,244.99,6.7]
[1757877220297,8.09935575,245.17,244.99,6.7]
[1757877220488,8.09935575,245.17,244.99,10.3717]
[1757877220684,6.42,245.16,245.0,6.7]
[1757877221291,6.42,245.16,245.01,3.6716]
[1757877221491,6.42,245.16,245.02,7.06]
[1757877222086,6.42,245.16,245.02,10.7313]
[1757877222293,6.42,245.16,245.03,7.06]
[1757877225098,6.38,245.16,245.01,80.22]
[1757877225300,1.67935575,245.17,245.01,80.22]
[1757877225491,1.67935575,245.13,244.99,7.06]
[1757877225695,6.38,245.12,244.99,7.06]
[1757877225895,6.38,245.08,244.95,7.06]
[1757877226200,1.67935575,245.05,244.94,274.16]
[1757877226400,6.38,245.04,244.94,274.16]
[1757877228303,6.38,245.04,244.95,7.06]
[1757877232000,6.38,245.04,244.95,110.24]
[1757877234310,53.99102108,245.96,244.95,110.24]
[1757877234311,6.79,245.1,244.96,6.93]
[1757877235107,1.67935575,245.09,244.96,110.11]
[1757877235307,6.79,245.08,244.96,110.11]
[1757877235506,6.79,245.08,244.96,6.93]
[1757877235804,1.67935575,245.05,244.92,6.93]
[1757877236005,6.79,245.04,244.92,6.93]
[1757877237909,7.86477419,245.0,244.92,6.93]
[1757877241611,6.79,245.0,244.92,6.93]
[1757877243713,8.68,245.1,244.86,6.83678976]
[1757877243714,1.07477419,244.96,244.86,6.83678976]
[1757877243910,1.07477419,244.96,244.83,1.07477419]
[1757877243911,6.79,244.92,244.84,6.93]
[1757877250716,6.79,244.9,244.8,6.93]
[1757877251120,6.79,244.9,244.78,1.07477419]
[1757877251321,7.05,244.87,244.76,6.93]
[1757877252021,1.07477419,244.85,244.76,6.93]
[1757877252213,7.05,244.84,244.76,6.93]
[1757877253519,7.05,244.84,244.73,6.63]
[1757877254016,1.07477419,244.82,244.73,6.63]
[1757877254617,7.05,244.81,244.73,6.63]
[1757877255021,7.05,244.88,244.79,6.63]
[1757877255219,7.05,244.88,244.82,1.07477419]
[1757877255619,7.05,244.88,244.79,6.63]
[1757877259122,7.05,244.88,244.81,1.07477419]
[1757877259327,7.05,244.93,244.84,1.07477419]
[1757877260929,7.05,244.98,244.85,6.63]
[1757877264729,1.07477419,244.96,244.85,6.63]
[1757877265625,7.05,244.95,244.85,6.63]
[1757877266427,1.07477419,244.93,244.85,6.63]
[1757877266631,7.05,244.92,244.8,23.85]
[1757877266928,7.05,244.92,244.8,6.63]
[1757877267638,1.07477419,244.9,244.8,6.63]
[1757877268733,1.07477419,244.88,244.8,6.63]
[1757877269233,1.07477419,244.91,244.8,6.63]
[1757877269937,1.07477419,244.91,244.81,6.63]
[1757877274033,7.05,244.93,244.81,6.63]
[1757877274238,1.07477419,244.92,244.81,6.63]
[1757877277040,7.05,244.93,244.82,6.63]
[1757877280341,1.07477419,244.97,244.84,7.70477419]
[1757877281245,1.07477419,244.97,244.86,6.63]
[1757877282238,7.05,244.98,244.87,1.07477419]
[1757877282544,7.05,244.98,244.88,6.38]
[1757877288449,1.07477419,244.99,244.88,6.38]
[1757877288657,6.9,245.0,244.88,6.38]
[1757877291548,6.9,245.0,244.9,7.45477419]
[1757877295958,1.07477419,245.01,244.9,7.45477419]
[1757877296354,6.37,245.03,244.9,7.45477419]
[1757877296553,1.07477419,245.02,244.9,7.45477419]
[1757877296957,6.37,245.03,244.9,7.45477419]
[1757877297158,1.07477419,245.02,244.9,7.45477419]
[1757877297755,6.37,245.03,244.9,6.38]
[1757877301464,6.37,245.03,244.9,10.0531]
[1757877301664,6.37,245.1,244.95,6.66]
[1757877302463,6.37,245.1,244.94,6.66]
[1757877302659,11.97100704,245.17,244.95,50.32]
[1757877302660,1.67879981,245.09,244.95,50.32]
[1757877302864,6.37,245.08,244.94,90.28]
[1757877303062,1.67879981,245.09,244.94,90.28]
[1757877303263,1.67879981,245.09,244.9,282.75558957]
[1757877303264,1.67879981,245.05,244.9,1.67879981]
[1757877303463,6.37,245.04,244.9,6.66]
[1757877304561,1.67879981,245.01,244.9,6.66]
[1757877304759,6.37,245.0,244.9,6.66]